Cogmind - Beta 9.6 @@@ ROGUE MODE // 2020.05.25 @ 21:52:17 Player: NeraMorte Result: Destroyed by G-50 Soldier with Heavy Laser Performance ------------- Evolutions (2) 1000 Regions Visited (5) 1000 Robots Destroyed (39) 195 Value Destroyed (933) 933 Prototype IDs (0) 0 Alien Tech Used (0) 0 Bonus (0) 0 TOTAL SCORE: 3128 Bonus ------- None Cogmind --------- Core Integrity 0/550 Matter 300/300 Energy 52/100 System Corruption 0% Temperature Cool (18) Movement Core (350) Ox6 Location -8/Storage Parts ------- > --- POWER (1) -------- (None) > --- PROPULSION (3) --- (None) > --- UTILITY (3) ------ Large Storage Unit Advanced Sensor Array > --- WEAPON (4) ------- Heavy Mace > --- INVENTORY (10) --- Aluminum Leg Heat Sink Improved Heat Sink Large Storage Unit Improved Targeting Computer Reactive Plating Particle Cannon Particle Cannon Heavy Assault Rifle Grenade Launcher Peak State ------------ > --- POWER ------------ Light Ion Engine > --- PROPULSION ------- Aluminum Leg Aluminum Leg Aluminum Leg > --- UTILITY ---------- Large Storage Unit Advanced Sensor Array Power Shielding > --- WEAPON ----------- Particle Cannon Particle Cannon Heavy Mace Heavy Mace > --- INVENTORY -------- Ion Engine Heat Sink Improved Heat Sink Large Storage Unit Improved Targeting Computer Reactive Plating Particle Cannon Heavy Assault Rifle Grenade Launcher Maul [Rating: 20] Favorites ----------- Power Ion Engine Engine Ion Engine Propulsion Light Treads Treads Light Treads Leg Aluminum Leg Wheel Wheel Utility Large Storage Unit Device Structural Scanner Storage Large Storage Unit Protection Power Shielding Weapon Assault Rifle Energy Gun EM Pulse Gun Energy Cannon Particle Cannon Ballistic Gun Assault Rifle Launcher Grenade Launcher Impact Weapon Heavy Mace Build | -11 -10 -9 -9 -8 -8 ------- Run | Scr Mat Mat Min Mat Sto Slots Evolved 4 | . . 2 . 2 . Power . | . . . . . . Propulsion 1 | . . 1 . . . Utility 1 | . . . . 1 . Weapon 2 | . . 1 . 1 . Parts Attached 37 | 6 3 5 1 21 1 Power 4 | 1 . . 1 2 . Engine 4 | 1 . . 1 2 . Core . | . . . . . . Reactor . | . . . . . . Propulsion 11 | 2 1 1 . 6 1 Treads 5 | 2 1 1 . . 1 Leg 5 | . . . . 5 . Wheel 1 | . . . . 1 . Hover . | . . . . . . Flight . | . . . . . . Utility 6 | 1 2 . . 3 . Device 2 | . 1 . . 1 . Storage 2 | 1 1 . . . . Processor . | . . . . . . Hackware . | . . . . . . Protection 2 | . . . . 2 . Artifact . | . . . . . . Weapon 16 | 2 . 4 . 10 . Energy Gun 2 | . . 1 . 1 . Energy Cannon 2 | . . . . 2 . Ballistic Gun 7 | 2 . 2 . 3 . Ballistic Cannon . | . . . . . . Launcher 2 | . . 1 . 1 . Special Weapon . | . . . . . . Impact Weapon 3 | . . . . 3 . Slashing Weapon . | . . . . . . Piercing Weapon . | . . . . . . Special Melee Weapon . | . . . . . . Unidentified Prototypes . | . . . . . . Parts Lost 19 | . . 1 . 11 7 Power 2 | . . . . 2 . Propulsion 7 | . . . . 3 4 Utility 1 | . . . . . 1 Weapon 9 | . . 1 . 6 2 Highest Loss Streak 7 | . . 1 . 5 7 Average Slot Usage (%) 92 | . 97 91 100 89 69 Engine 9 | . 14 11 11 7 . Treads 20 | . 28 28 33 11 1 Leg 5 | . . . . 11 12 Wheel 1 | . . . . 1 7 Device 10 | . 12 11 11 8 9 Storage 10 | . 14 11 11 9 9 Protection 3 | . . . . 7 6 Energy Gun 1 | . . 6 . 1 . Energy Cannon 2 | . . . . 6 . Ballistic Gun 16 | . 28 21 22 9 7 Launcher 4 | . . 1 11 5 . Impact Weapon 4 | . . . . 8 16 Naked Turns . | . . . . . . Heaviest Build 37 | 13 26 30 30 37 27 Greatest Support 63 | 40 40 63 63 63 20 Greatest Overweight (x) 12 | . . . . 12 7 Average Overweight (x) . | . . . . . 1 Largest Inventory Capacity 10 | 6 10 10 10 10 10 Average Capacity 9 | 5 8 10 10 10 10 Most Carried 10 | 4 7 7 9 10 10 Average Carried 7 | 2 4 6 7 9 10 Final Capacity 10 | 6 10 10 10 10 10 Final Carried 10 | 2 7 7 9 10 10 Class Distribution -------------------- 68% | Mutant 23% | Skirmisher 8% | Tank Dominant Class ---------------- Mutant | -10/Materials Skirmisher | -9/Materials Mutant | -9/Mines Mutant | -8/Materials Mutant | -8/Storage Resources | -11 -10 -9 -9 -8 -8 ----------- Run | Scr Mat Mat Min Mat Sto Matter Collected 943 | 141 84 357 40 311 10 Remotely . | . . . . . . Salvage Created 1173 | . 84 282 79 636 92 Parts 59 | . 4 13 13 25 4 Haulers Intercepted . | . . . . . . Recyclers Shooed . | . . . . . . Parts Field Recycled . | . . . . . . Retrieved Matter . | . . . . . . Parts Self-Destructed . | . . . . . . Prevented . | . . . . . . Kills | -11 -10 -9 -9 -8 -8 ------- Run | Scr Mat Mat Min Mat Sto Combat Hostiles Destroyed 34 | . 2 9 4 17 2 Melee 6 | . . . . 4 2 Guns 18 | . 2 7 4 5 . Cannons 4 | . . . . 4 . AOE 4 | . . 2 . 2 . Classes Destroyed 6 | . 1 1 1 3 . Worker 2 | . . . 1 1 . Builder 1 | . . . . 1 . Recycler 2 | . . . . 2 . Swarmer 17 | . . 3 4 10 . Grunt 15 | . 2 6 . 6 1 Sentry 2 | . . . . 1 1 Best Kill Streak 5 | . 2 5 4 4 1 Combat Bots Only 5 | . 2 5 4 4 1 Max Kills in Single Turn 2 | . 1 1 1 2 1 Gunslinging . | . . . . . . Exploded 2 | . . 1 . 2 . Melee 1 | . . . . 1 1 Uniques/NPCs Destroyed . | . . . . . . Combat | -11 -10 -9 -9 -8 -8 -------- Run | Scr Mat Mat Min Mat Sto Damage Taken 2770 | . 72 395 110 1302 891 Core 572 | . . 21 . 248 303 Absorbed by Shields . | . . . . . . Core Remaining (%) 98 | 100 100 . 94 . . Volleys Fired 71 | . 9 26 8 28 . Largest 3 | . 2 3 3 3 . Hottest 159 | . 40 83 73 159 . Shots Fired 176 | . 18 70 17 71 . Gun 154 | . 18 66 16 54 . Cannon 15 | . . . . 15 . Launcher 7 | . . 4 1 2 . Special . | . . . . . . Kinetic 128 | . 18 51 16 43 . Thermal 26 | . . . . 26 . Explosive 7 | . . 4 1 2 . Electromagnetic 15 | . . 15 . . . Robot Hit Streak 18 | . 3 13 3 18 . Robot Miss Streak 8 | . 2 8 2 3 . Penetration Max . | . . . . . . Secondary Targets 6 | . . 4 . 2 . Max Gunslinging Chain 1 | . . 1 . 1 . Shots Hit Robots 152 | . 10 33 9 87 13 Core Hits 49 | . 4 10 5 26 4 Critical Hits . | . . . . . . Critical Kills . | . . . . . . Critical Parts Destroyed . | . . . . . . Melee Attacks 74 | . . . . 55 19 Impact 74 | . . . . 55 19 Slashing . | . . . . . . Piercing . | . . . . . . Sneak Attacks 5 | . . . . 5 . Combat Hostiles . | . . . . . . Follow-up Attacks 13 | . . . . 11 2 Damage Inflicted 3344 | . 101 541 177 2197 328 Guns 1052 | . 101 397 120 434 . Cannons 122 | . . . . 122 . Explosions 347 | . . 144 57 146 . Melee 1823 | . . . . 1495 328 Ramming . | . . . . . . Kinetic 852 | . 101 338 120 293 . Thermal 320 | . . . 57 263 . Explosive 290 | . . 144 . 146 . Electromagnetic 59 | . . 59 . . . Impact 1823 | . . . . 1495 328 Slashing . | . . . . . . Piercing . | . . . . . . Highest Corruption . | . . . . . . Average Corruption . | . . . . . . Corruption Purged . | . . . . . . Overload Shots . | . . . . . . Overflow Damage 407 | . . 27 17 363 . Projectiles 25 | . . . . 25 . Explosions 44 | . . 27 17 . . Melee 338 | . . . . 338 . Knockbacks 10 | . . . . 8 2 Impact 7 | . . . . 5 2 Kinetic . | . . . . . . Secondary 3 | . . . . 3 . Self-Inflicted Damage 81 | . . . 66 15 . Shots 3 | . . . 2 1 . Rammed . | . . . . . . Targets Rammed . | . . . . . . Kicked . | . . . . . . Crushed . | . . . . . . Highest Temperature 324 | . . 39 3 324 . Average Temperature 47 | . . 17 2 67 . Received Heat Transfer 1065 | . 42 123 . 459 441 Siege Activations . | . . . . . . Robots Corrupted . | . . . . . . Combat Hostiles . | . . . . . . Parts Fried 6 | . . . . 6 . Impact Corruptions 15 | . . . . 15 . Robots Melted . | . . . . . . Combat Hostiles . | . . . . . . Parts Melted . | . . . . . . Heat Transferred 605 | . . . 50 555 . Parts Sabotaged . | . . . . . . Parts Stolen . | . . . . . . Parts Stripped . | . . . . . . Power Chain Reactions . | . . . . . . Missiles Intercepted . | . . . . . . Alert | -11 -10 -9 -9 -8 -8 ------- Run | Scr Mat Mat Min Mat Sto Peak Influence 250 | . 50 250 105 222 64 Average Influence 83 | . 9 98 89 123 27 Maximum Alert Level 1 | . . 1 . 1 . Low Security (%) 96 | 100 100 89 100 95 100 Level 1 3 | . . 10 . 4 . Level 2 . | . . . . . . Level 3 . | . . . . . . Level 4 . | . . . . . . Level 5 . | . . . . . . High Security . | . . . . . . Max Security . | . . . . . . Squads Dispatched 3 | . 1 1 . 1 . Investigation . | . . . . . . Extermination . | . . . . . . Reinforcement 3 | . 1 1 . 1 . Assault . | . . . . . . Garrison . | . . . . . . Intercept . | . . . . . . Construction Impeded . | . . . . . . Haulers Reinforced . | . . . . . . Stealth | -11 -10 -9 -9 -8 -8 --------- Run | Scr Mat Mat Min Mat Sto Distress Signals 1 | . . 1 . . . Communications Jammed . | . . . . . . Distress Signals . | . . . . . . Times Spotted 49 | . 3 12 4 25 5 Peak Tracking Total 5 | . 2 5 4 5 3 Tactical Retreats 8 | . . 2 . 6 . Traps | -11 -10 -9 -9 -8 -8 ------- Run | Scr Mat Mat Min Mat Sto Traps Triggered . | . . . . . . Indirectly . | . . . . . . Trap Hack Attempts . | . . . . . . Triggered . | . . . . . . Disarmed . | . . . . . . Reprogrammed . | . . . . . . Reused . | . . . . . . Traps Extracted . | . . . . . . Installed . | . . . . . . Triggered . | . . . . . . Machines | -11 -10 -9 -9 -8 -8 ---------- Run | Scr Mat Mat Min Mat Sto Machines Disabled 4 | . . 1 1 2 . Max in Single Turn 1 | . . 1 1 1 . Machines Sabotaged . | . . . . . . Garrisons Compromised . | . . . . . . Overloaded Fab Kills . | . . . . . . Fab Network Shutdowns . | . . . . . . Hacking | -11 -10 -9 -9 -8 -8 --------- Run | Scr Mat Mat Min Mat Sto Machines Accessed 1 | . 1 . . . . Terminals 1 | . 1 . . . . Fabricators . | . . . . . . Repair Stations . | . . . . . . Recycling Units . | . . . . . . Scanalyzers . | . . . . . . Garrison Access . | . . . . . . Total Hacks 2 | . 2 . . . . Successful . | . . . . . . Failed 2 | . 2 . . . . Catastrophic 2 | . 2 . . . . Database Lockouts . | . . . . . . Manual . | . . . . . . Terminals 2 | . 2 . . . . Fabricators . | . . . . . . Repair Stations . | . . . . . . Recycling Units . | . . . . . . Scanalyzers . | . . . . . . Garrison Access . | . . . . . . Terminal Hacks . | . . . . . . Fabricator Hacks . | . . . . . . Repair Station Hacks . | . . . . . . Recycling Unit Hacks . | . . . . . . Scanalyzer . | . . . . . . Garrison Access Hacks . | . . . . . . Unauthorized Hacks . | . . . . . . Terminals . | . . . . . . Fabricators . | . . . . . . Repair Stations . | . . . . . . Recycling Units . | . . . . . . Scanalyzers . | . . . . . . Garrison Access . | . . . . . . Data Cores Recovered . | . . . . . . Used . | . . . . . . Hacking Detections 1 | . 1 . . . . Full Trace Events . | . . . . . . Feedback Events . | . . . . . . Feedback Blocked . | . . . . . . Robot Schematics Acquired . | . . . . . . Robots Built . | . . . . . . Matter . | . . . . . . Time . | . . . . . . Total Robot Build Rating . | . . . . . . Part Schematics Acquired . | . . . . . . Parts Built . | . . . . . . Matter . | . . . . . . Time . | . . . . . . Total Part Build Rating . | . . . . . . Parts Repaired . | . . . . . . Time . | . . . . . . Parts Recycled . | . . . . . . Recycled Matter . | . . . . . . Retrieved Matter . | . . . . . . Retrieved Components . | . . . . . . Parts Scanalyzed . | . . . . . . Part Schematics Acquired . | . . . . . . Parts Damaged . | . . . . . . Bothacking | -11 -10 -9 -9 -8 -8 ------------ Run | Scr Mat Mat Min Mat Sto Used RIF Installer . | . . . . . . Robots Hacked . | . . . . . . Non-combat . | . . . . . . Combat . | . . . . . . Robot Hacks Applied . | . . . . . . Relay Couplers Released . | . . . . . . Robots Rewired . | . . . . . . Allies Hacked . | . . . . . . Hacks Repelled . | . . . . . . Allies | -11 -10 -9 -9 -8 -8 -------- Run | Scr Mat Mat Min Mat Sto Total Allies . | . . . . . . Largest Group . | . . . . . . Highest-Rated Group . | . . . . . . Highest-Rated Ally . | . . . . . . Total Orders . | . . . . . . Ally Attacks . | . . . . . . Total Damage . | . . . . . . Kills . | . . . . . . Allies Corrupted . | . . . . . . Allies Melted . | . . . . . . Intel | -11 -10 -9 -9 -8 -8 ------- Run | Scr Mat Mat Min Mat Sto Robot Analysis Total . | . . . . . . Derelict Logs Recovered 1 | . . . 1 . . Drone Launches . | . . . . . . Drone Recoveries . | . . . . . . Exploration | -11 -10 -9 -9 -8 -8 ------------- Run | Scr Mat Mat Min Mat Sto Turns Passed 2195 | 78 357 314 478 824 144 Spaces Moved 1030 | 53 176 139 276 328 58 Core 23 | 18 . . . 4 1 Treads 833 | 35 176 139 276 204 3 Legs 174 | . . . . 120 54 Wheels . | . . . . . . Hover . | . . . . . . Flight . | . . . . . . Fastest Speed 50 | 50 160 160 160 150 150 Average Speed 158 | 122 160 160 160 162 155 Slowest Speed 650 | 160 160 160 160 650 400 Overloaded Moves . | . . . . . . Propulsion Burnouts . | . . . . . . Robots Hopped . | . . . . . . Cave-ins Triggered . | . . . . . . Exploration Rate (%) 25 | 6 30 19 61 24 14 Regions Visited 5 Branch Regions 2 Pre-discovered Areas . | . . . . . . Known Exits Taken . | . . . . . . Unknown Exits Taken 5 | 1 1 1 1 1 . Scrap Searched 1 | . . . 1 . . Spaces Dug . | . . . . . . Terrain Destroyed 50 | . . 20 19 11 . Melee . | . . . . . . Projectile . | . . . . . . AOE 50 | . . 20 19 11 . Actions | -11 -10 -9 -9 -8 -8 --------- Run | Scr Mat Mat Min Mat Sto Total 1322 | 66 235 174 297 472 78 Wait 77 | . 37 1 7 30 2 Move 1025 | 52 175 138 275 327 58 Hop . | . . . . . . Pick Up 36 | 8 8 3 4 13 . Fast Attach 10 | . . 1 . 8 1 Attach 23 | 6 3 3 1 10 . Detach 2 | . 1 . . 1 . Swap 4 | . . 1 . 3 . Drop 15 | . 2 1 2 10 . Fire 71 | . 9 26 8 28 . Melee 59 | . . . . 42 17 Ram . | . . . . . . Kick . | . . . . . . Crush . | . . . . . . Escape Stasis . | . . . . . . Rewire . | . . . . . . Trap . | . . . . . . Miscellaneous . | . . . . . . Route ------- -11/Scrapyard -10/Materials -9/Materials -9/Mines -8/Materials -8/Storage History --------- Turn | Location | Event 10 | -11/Scrapyard | Discovered new exit (range 15) 79 | -11/Scrapyard | Entered Materials 317 | -10/Materials | Build established: Mutant 401 | -10/Materials | Discovered new exit (range 16) 436 | -10/Materials | Entered another Materials area 436 | -9/Materials | Evolved 2 slots: Propulsion x1, Weapon x1 613 | -9/Materials | Discovered new exit (range 10) 750 | -9/Materials | Entered Mines 848 | -9/Mines | Learned Materials interactive machine intel 1205 | -9/Mines | Discovered new exit (range 8) 1228 | -9/Mines | Entered Materials 1228 | -8/Materials | Evolved 2 slots: Utility x1, Weapon x1 1229 | -8/Materials | Loaded intel: 18 interactive machine locations 1339 | -8/Materials | Discovered new exit (range 16) 1399 | -8/Materials | Lost 3 parts (1n2w) 1924 | -8/Materials | Lost 5 parts (1p2n2w) 2052 | -8/Materials | Entered Storage 2138 | -8/Storage | Core integrity fell below 50% 2180 | -8/Storage | Core integrity fell below 20% 2196 | -8/Storage | Destroyed by G-50 Soldier with Heavy Laser Last Messages --------------- 02140_ Y-45 Defender destroyed. 02144_ C-30 ARC bursts open, deploying its payload. 02144_ G-47 Trooper unfolds itself. 02145_ Transport Mainframe disabled. 02147_ Aluminum Leg destroyed. 02149_ Hvy. Mace follow-up attack on G-47 Trooper. 02155_ Insulated Plating destroyed. 02158_ G-50 Soldier knocked back. 02161_ Lgt. Assault Rifle destroyed. 02162_ Aluminum Leg destroyed. 02165_ R-06 Scavenger collects Imp. Ion Engine. 02167_ G-47 Trooper destroyed. 02169_ Wheel destroyed. 02170_ Hvy. Mace destroyed. 02174_ Acquired Lgt. Treads. 02175_ Acquired 10 matter. 02177_ G-47 Trooper knocked back. 02179_ R-06 Scavenger collects Imp. Heat Sink. 02182_ R-06 Scavenger collects Lgt. Nuclear Core. 02194_ Lgt. Treads destroyed. Map ----- +----------------------------------------------------+ | | | | | | | | | | | | | | | | | ????????????????????????????????????????? | | ???????????????????????????????########?? | | ???????????????????????????????# #?? | | ?????????????????????????#######""" #?? | | ?????##################### #""" #?? | | ?????# #""" #?? | | ?????# + #?? | | ?????# # #?? | | ?????##################### # #?? | | ?????????????????????????## ## #?? | | ??????????????############# #########?? | | ??????????????# ! # #? #?? | | ??????????????# # #! #?? | | ??????????????# """" """" # # """ #?? | | ?????????????## """" """" + + """ #?? | | ?????????????# """" """" # # """ #?? | | ?????????????## r " """" # # #?? | | ??????????????#g@ % g # #? #?? | | ??????????????##/########## #?####+##?? | | ???????????????# #???????? ?????????? | | ???????????????# ??????? #????????? | | ???????????????+ ?????? T #????????? | | ???????????????# ????? #????????? | | ???????????????# ????#### ????????? | | ???????????????# ??????##### ????????? | | ???????????????# #+??????????? ???????? | | ???????????????? ????????????? ???????? | | ???????????????? ????????????? ??????? | | ???????????????? ????????????? ???????? | | ???????????????? ????????????? ?????????? | | ???????????????? ???????????????????????? | | ???????????????? ???????????????????????? | | ???????????????? ???????????????????????? | | ????????????????????????????????????????? | | ????????????????????????????????????????? | | ????????????????????????????????????????? | | ????????????????????????????????????????? | | ????????????????????????????????????????? | | ????????????????????????????????????????? | | ????????????????????????????????????????? | | ????????????????????????????????????????? | | ????????????????????????????????????????? | +----------------------------------------------------+ Best States ------------- Heat Dissipation 31 Energy Generation 10 Energy Capacity 250 Matter Stores 300 Matter Capacity 300 Sight Range 16 Robot Scan Range 16 Terrain Scan Density 10 Armor Coverage 150 Resistance: EM 15 Power Shielding 33 Evasion (%) 50 Recoil Reduction 3 Item Schematics ----------------- None Robot Schematics ------------------ None Fabricated ------------ Nothing Alien Tech Used ----------------- None Achievements -------------- None Challenges ------------ None Game ------ Seed FlightScanKatana Manual? 0 Play Time 00:37:27 Cumulative 47.5 hours Start 2020.05.25 @ 16:14:59 End 2020.05.25 @ 21:52:17 Sessions 1 Manual Loads 0 Difficulty Rogue Special Mode None Game No. 37 Rogue 37 Adventurer 0 Explorer 0 Win Type - Total 0 Types 0/0/0/0/0/0/0 Lore% 22 Gallery% 31 Achievement% 21 Wizard Run 0 Options --------- ASCII 0 Keyboard 0 Movement Numpad Keybinds 0 Fullscreen 1 Font 24/Smallcaps Map View 76x50 Tactical HUD 1 Map Filters NONE Filters NONE Steam 1 RUN: 838ab3ca-32e1-4ec2-a622-7d7d375306cd